fUSD/lending_fUSD_20250305
["ID","MTS","AMOUNT","RATE_DAILY","PERIOD"]
[355438400,1741156247065,-727.68,0.00011923,2]
[355438401,1741156247075,-916.84,0.00011923,2]
[355438402,1741156247084,-789.81,0.00011923,2]
[355438403,1741156247094,-1360.75,0.00011923,2]
[355438404,1741156247103,-1246.45,0.00011923,2]
[355438405,1741156247113,-500.0,0.00011923,2]
[355438406,1741156247123,-815.27,0.00011923,2]
[355438407,1741156247132,-713.98,0.00011923,2]
[355438408,1741156247142,-500.0,0.00011923,2]
[355438409,1741156247151,-500.0,0.00011923,2]
[355438410,1741156247161,-1039.95,0.00011923,2]
[355438411,1741156247171,-500.0,0.00011923,2]
[355438412,1741156247181,-1688.51,0.00011923,2]
[355438413,1741156247190,-500.0,0.00011923,2]
[355438414,1741156247200,-500.0,0.00011923,2]
[355438415,1741156247210,-500.0,0.00011923,2]
[355438416,1741156247220,-935.45,0.00011923,2]
[355438417,1741156247229,-500.0,0.00011923,2]
[355438418,1741156247239,-888.97,0.00011923,2]
[355438419,1741156247248,-1851.88,0.00011923,2]
[355438420,1741156247258,-500.0,0.00011923,2]
[355438421,1741156247267,-500.0,0.00011923,2]
[355438422,1741156247276,-500.0,0.00011923,2]
[355438423,1741156247286,-770.79,0.00011923,2]
[355438424,1741156247295,-500.0,0.00011923,2]
[355438425,1741156247304,-1009.21,0.00011923,2]
[355438426,1741156247314,-1668.66,0.00011923,2]
[355438427,1741156247323,-500.0,0.00011923,2]
[355438428,1741156247332,-1247.95,0.00011923,2]
[355438429,1741156247342,-683.78,0.00011923,2]
[355438430,1741156247351,-500.0,0.00011923,2]
[355438431,1741156247361,-2274.16,0.00011923,2]
[355438432,1741156247370,-500.0,0.00011923,2]
[355438433,1741156247380,-874.79,0.00011923,2]
[355438434,1741156247390,-888.22,0.00011923,2]
[355438435,1741156247399,-2630.93,0.00011923,2]
[355438436,1741156247409,-1580.24,0.00011923,2]
[355438437,1741156247419,-876.79,0.00011923,2]
[355438438,1741156247429,-833.34,0.00011923,2]
[355438439,1741156247439,-920.29,0.00011923,2]
[355438440,1741156247448,-1253.22,0.00011923,2]
[355438441,1741156247457,-647.02,0.00011923,2]
[355438442,1741156247467,-2292.49,0.00011923,2]
[355438443,1741156247479,-783.68,0.00011923,2]
[355438444,1741156247489,-1565.3,0.00011923,2]
[355438445,1741156247498,-1029.4,0.00011923,2]
[355438446,1741156247508,-741.8,0.00011923,2]
[355438447,1741156247518,-786.69,0.00011923,2]
[355438448,1741156247528,-2118.18,0.00011923,2]
[355438449,1741156247538,-10118.42,0.00011923,2]
[355438450,1741156247547,-618.68,0.00011923,2]
[355438451,1741156247557,-1399.57,0.00011923,2]
[355438452,1741156247568,-2489.79,0.00011923,2]
[355438453,1741156247577,-154.789757,0.00011923,2]
[355438454,1741156247587,-923.69,0.00011923,2]
[355438455,1741156247596,-1493.08,0.00011923,2]
[355438456,1741156247606,-2553.77,0.00011923,2]
[355438457,1741156247615,-971.04,0.00011923,2]
[355438458,1741156247624,-773.27,0.00011923,2]
[355438459,1741156247633,-733.29745675,0.00011923,2]
[355438460,1741156247659,-1791.47254325,0.00011923,2]
[355438461,1741156247672,-2512.72,0.00011923,2]
[355438462,1741156247681,-572.21,0.00011923,2]
[355438463,1741156247690,-2053.54,0.00011923,2]
[355438464,1741156247701,-1922.12,0.00011923,2]
[355438465,1741156247711,-154.603501,0.00011923,2]
[355438466,1741156247720,-500.0,0.00011923,2]
[355438467,1741156247730,-2262.6,0.00011923,2]
[355438468,1741156247740,-5830.65,0.00011923,2]
[355438469,1741156247750,-1162.71,0.00011923,2]
[355438470,1741156247763,-3308.71,0.00011923,2]
[355438471,1741156247773,-1251.52,0.00011923,2]
[355438472,1741156247784,-500.0,0.00011923,2]
[355438473,1741156247793,-2166.61,0.00011923,2]
[355438474,1741156247803,-2684.08,0.00011923,2]
[355438475,1741156247814,-1914.19,0.00011923,2]
[355438476,1741156247823,-2003.81,0.00011923,2]
[355438477,1741156247833,-10473.07,0.00011923,2]
[355438478,1741156247843,-1547.47,0.00011923,2]
[355438479,1741156247852,-1858.01,0.00011923,2]
[355438480,1741156247862,-3470.97,0.00011923,2]
[355438481,1741156247871,-3355.8,0.00011923,2]
[355438482,1741156247881,-856.24,0.00011923,2]
[355438483,1741156247891,-3275.39,0.00011923,2]
[355438484,1741156247900,-500.0,0.00011923,2]
[355438485,1741156247910,-2744.71,0.00011923,2]
[355438486,1741156247919,-1334.7,0.00011923,2]
[355438487,1741156247930,-2375.86,0.00011923,2]
[355438488,1741156247940,-672.97,0.00011923,2]
[355438489,1741156247949,-993.72,0.00011923,2]
[355438490,1741156247959,-5018.52,0.00011923,2]
[355438491,1741156247969,-1535.61,0.00011923,2]
[355438492,1741156247979,-1980.17,0.00011923,2]
[355438493,1741156247988,-5956.26,0.00011923,2]
[355438494,1741156247998,-1362.59,0.00011923,2]
[355438495,1741156248007,-6640.42,0.00011923,2]
[355438496,1741156248018,-3758.99,0.00011923,2]
[355438497,1741156248027,-2897.25819737,0.00011923,2]
[355438498,1741156248039,-4632.20180263,0.00011923,2]
[355438499,1741156248050,-1664.47,0.00011923,2]
[355438500,1741156248059,-3166.65,0.00011923,2]
[355438501,1741156248069,-1397.9,0.00011923,2]
[355438502,1741156248079,-2100.92,0.00011923,2]
[355438503,1741156248088,-2275.57,0.00011923,2]
[355438504,1741156248099,-500.0,0.00011923,2]
[355438505,1741156248109,-3460.76,0.00011923,2]
[355438506,1741156248119,-500.0,0.00011923,2]
[355438507,1741156248128,-500.0,0.00011923,2]
[355438508,1741156248138,-500.0,0.00011923,2]
[355438509,1741156248148,-14488.57,0.00011923,2]
[355438510,1741156248158,-32230.98,0.00011923,2]
[355438511,1741156248168,-3021.75,0.00011923,2]
[355438512,1741156248179,-3354.79,0.00011923,2]
[355438513,1741156248189,-2120.68,0.00011923,2]
[355438514,1741156248198,-2883.77,0.00011923,2]
[355438515,1741156248209,-2798.15,0.00011923,2]
[355438516,1741156248219,-198.08610993,0.00011923,2]
[355438517,1741156248229,-500.0,0.00011923,2]
[355438518,1741156248239,-500.0,0.00011923,2]
[355438519,1741156248248,-500.0,0.00011923,2]
[355438520,1741156248258,-574.90068986,0.00011923,2]
[355438521,1741156248267,-500.0,0.00011923,2]
[355438522,1741156248276,-500.0,0.00011923,2]
[355438523,1741156248286,-328.16930103,0.00011924,2]
[355438524,1741156248296,-500.0,0.00011924,2]
[355438525,1741156248305,-500.0,0.00011924,2]
[355438526,1741156248315,-606.23,0.00011924,2]
[355438527,1741156248325,-500.0,0.00011924,2]
[355438528,1741156248335,-818.38,0.00011924,2]
[355438529,1741156248344,-500.0,0.00011924,2]
[355438530,1741156248354,-996.08,0.00011924,2]
[355438531,1741156248363,-500.0,0.00011924,2]
[355438532,1741156248373,-500.0,0.00011924,2]
[355438533,1741156248382,-500.0,0.00011924,2]
[355438534,1741156248392,-500.0,0.00011924,2]
[355438535,1741156248402,-500.0,0.00011924,2]
[355438536,1741156248411,-500.0,0.00011924,2]
[355438537,1741156248421,-727.74,0.00011924,2]
[355438538,1741156248691,-456.81596049,0.00011924,2]
[355438539,1741156248699,-500.0,0.00011924,2]
[355438540,1741156248710,-800.39,0.00011924,2]
[355438541,1741156248720,-500.0,0.00011924,2]
[355438542,1741156248730,-500.0,0.00011924,2]
[355438543,1741156248740,-500.0,0.00011924,2]
[355438544,1741156248750,-474.47833393,0.00011924,2]
[355438545,1741156248760,-500.0,0.00011924,2]
[355438546,1741156248770,-500.0,0.00011924,2]
[355438547,1741156248779,-500.0,0.00011924,2]
[355438548,1741156248789,-500.0,0.00011924,2]
[355438549,1741156248798,-533.9136824,0.00011924,2]
[355438550,1741156248808,-222.99619848,0.00011924,2]
[355438551,1741156248818,-500.0,0.00011924,2]
[355438552,1741156248828,-500.0,0.00011924,2]
[355438553,1741156248837,-644.65,0.00011924,2]
[355438554,1741156248847,-268.48739949,0.00011924,2]
[355438555,1741156248857,-557.17,0.00011924,2]
[355438556,1741156248866,-500.0,0.00011924,2]
[355438557,1741156248875,-510.25,0.00011924,2]
[355438558,1741156248886,-500.0,0.00011924,2]
[355438559,1741156248895,-500.0,0.00011924,2]
[355438560,1741156248905,-500.0,0.00011924,2]
[355438561,1741156248914,-500.0,0.00011924,2]
[355438562,1741156248924,-500.0,0.00011924,2]
[355438563,1741156248934,-500.0,0.00011924,2]
[355438564,1741156248943,-540.55,0.00011924,2]
[355438565,1741156248953,-500.0,0.00011924,2]
[355438566,1741156248963,-500.0,0.00011924,2]
[355438567,1741156248972,-500.0,0.00011924,2]
[355438568,1741156248982,-989.47,0.00011924,2]
[355438569,1741156248991,-500.0,0.00011924,2]
[355438570,1741156249001,-927.29,0.00011924,2]
[355438571,1741156249010,-941.19,0.00011924,2]
[355438572,1741156249020,-500.0,0.00011924,2]
[355438573,1741156249030,-500.0,0.00011924,2]
[355438574,1741156249039,-500.0,0.00011924,2]
[355438575,1741156249049,-516.96209976,0.00011924,2]
[355438576,1741156249059,-500.0,0.00011924,2]
[355438577,1741156249068,-780.64,0.00011924,2]
[355438578,1741156249078,-500.0,0.00011924,2]
[355438579,1741156249087,-502.61,0.00011924,2]
[355438580,1741156249097,-500.0,0.00011924,2]
[355438581,1741156249106,-721.84,0.00011924,2]
[355438582,1741156249116,-500.0,0.00011924,2]
[355438583,1741156249125,-500.0,0.00011924,2]
[355438584,1741156249134,-728.07,0.00011924,2]
[355438585,1741156249144,-500.0,0.00011924,2]
[355438586,1741156249154,-500.0,0.00011924,2]
[355438587,1741156249163,-500.0,0.00011924,2]
[355438588,1741156249173,-500.0,0.00011924,2]
[355438589,1741156249183,-866.83,0.00011924,2]
[355438590,1741156249193,-558.28014949,0.00011924,2]
[355438591,1741156249207,-771.65,0.00011924,2]
[355438592,1741156249217,-596.4772324,0.00011924,2]
[355438593,1741156249230,-500.0,0.00011924,2]
[355438594,1741156249240,-500.0,0.00011924,2]
[355438595,1741156249250,-500.0,0.00011924,2]
[355438596,1741156249259,-500.0,0.00011924,2]
[355438597,1741156249269,-500.0,0.00011924,2]
[355438598,1741156249279,-598.27,0.00011924,2]
[355438599,1741156249288,-500.0,0.00011924,2]
[355438600,1741156249298,-500.0,0.00011924,2]
[355438601,1741156249308,-500.0,0.00011924,2]
[355438602,1741156249317,-500.0,0.00011924,2]
[355438603,1741156249327,-500.0,0.00011924,2]
[355438604,1741156249336,-500.0,0.00011924,2]
[355438605,1741156249345,-500.0,0.00011924,2]
[355438606,1741156249355,-576.83815804,0.00011924,2]
[355438607,1741156249364,-500.0,0.00011924,2]
[355438608,1741156249374,-500.0,0.00011924,2]
[355438609,1741156249383,-500.0,0.00011924,2]
[355438610,1741156249392,-500.0,0.00011924,2]
[355438611,1741156249402,-513.20233842,0.00011924,2]
[355438612,1741156249411,-500.0,0.00011924,2]
[355438613,1741156249421,-958.25,0.00011924,2]
[355438614,1741156249430,-893.52,0.00011924,2]
[355438615,1741156249439,-500.0,0.00011924,2]
[355438616,1741156249449,-500.0,0.00011924,2]
[355438617,1741156249458,-932.32,0.00011924,2]
[355438618,1741156249469,-500.0,0.00011924,2]
[355438619,1741156249478,-500.0,0.00011924,2]
[355438620,1741156249487,-1000.71,0.00011924,2]
[355438621,1741156249496,-500.0,0.00011924,2]
[355438622,1741156249505,-500.0,0.00011924,2]
[355438623,1741156249515,-500.0,0.00011924,2]
[355438624,1741156249524,-500.0,0.00011924,2]
[355438625,1741156249534,-992.74,0.00011924,2]
[355438626,1741156249543,-500.0,0.00011924,2]
[355438627,1741156249553,-500.0,0.00011924,2]
[355438628,1741156249562,-500.0,0.00011924,2]
[355438629,1741156249571,-1222.45,0.00011924,2]
[355438630,1741156249581,-500.0,0.00011924,2]
[355438631,1741156249590,-500.0,0.00011924,2]
[355438632,1741156249599,-1074.96,0.00011924,2]
[355438633,1741156249608,-902.23,0.00011924,2]
[355438634,1741156249617,-500.0,0.00011924,2]
[355438635,1741156249626,-500.0,0.00011924,2]
[355438636,1741156249635,-500.0,0.00011924,2]
[355438637,1741156249644,-500.0,0.00011924,2]
[355438638,1741156249654,-501.71004166,0.00011924,2]
[355438639,1741156249663,-500.0,0.00011924,2]
[355438640,1741156249676,-500.0,0.00011924,2]
[355438641,1741156249685,-500.0,0.00011924,2]
[355438642,1741156249696,-967.43,0.00011924,2]
[355438643,1741156249706,-500.0,0.00011924,2]
[355438644,1741156249718,-500.0,0.00011924,2]
[355438645,1741156249727,-500.0,0.00011924,2]
[355438646,1741156249737,-500.0,0.00011924,2]
[355438647,1741156249748,-500.0,0.00011924,2]
[355438648,1741156249758,-736.31,0.00011924,2]
[355438649,1741156249767,-506.56533878,0.00011924,2]
[355438650,1741156249776,-1233.27,0.00011924,2]
[355438651,1741156249786,-500.0,0.00011924,2]
[355438652,1741156249795,-500.0,0.00011924,2]
[355438653,1741156249804,-802.11,0.00011924,2]
[355438654,1741156249814,-500.0,0.00011924,2]
[355438655,1741156249824,-1515.55,0.00011924,2]
[355438656,1741156249834,-500.0,0.00011924,2]
[355438657,1741156249843,-212.35220944,0.00011924,2]
[355438658,1741156249852,-500.0,0.00011924,2]
[355438659,1741156249862,-500.0,0.00011924,2]
[355438660,1741156249871,-734.91,0.00011924,2]
[355438661,1741156249881,-1110.95,0.00011924,2]
[355438662,1741156249891,-2570.18,0.00011924,2]
[355438663,1741156249901,-500.0,0.00011924,2]
[355438664,1741156249910,-500.0,0.00011924,2]
[355438665,1741156249919,-500.0,0.00011924,2]
[355438666,1741156249929,-500.0,0.00011924,2]
[355438667,1741156249938,-500.0,0.00011924,2]
[355438668,1741156249949,-500.0,0.00011924,2]
[355438669,1741156249958,-509.23789388,0.00011924,2]
[355438670,1741156249968,-500.0,0.00011924,2]
[355438671,1741156249977,-725.76,0.00011924,2]
[355438672,1741156249987,-500.0,0.00011924,2]
[355438673,1741156249996,-500.0,0.00011924,2]
[355438674,1741156250007,-1087.83,0.00011924,2]
[355438675,1741156250016,-500.0,0.00011924,2]
[355438676,1741156250026,-502.50454535,0.00011924,2]
[355438677,1741156250035,-500.0,0.00011924,2]
[355438678,1741156250046,-500.0,0.00011924,2]
[355438679,1741156250056,-1235.88,0.00011924,2]
[355438680,1741156250065,-819.24,0.00011924,2]
[355438681,1741156250076,-506.62093973,0.00011924,2]
[355438682,1741156250085,-500.0,0.00011924,2]
[355438683,1741156250095,-500.0,0.00011924,2]
[355438684,1741156250105,-719.58,0.00011924,2]
[355438685,1741156250114,-461.54235957,0.00011924,2]
[355438686,1741156250123,-521.50742246,0.00011924,2]
[355438687,1741156250133,-2645.98,0.00011924,2]
[355438688,1741156250142,-500.0,0.00011924,2]
[355438689,1741156250151,-500.0,0.00011924,2]
[355438690,1741156250161,-1452.38,0.00011924,2]
[355438691,1741156250170,-787.36,0.00011924,2]
[355438692,1741156250180,-500.0,0.00011924,2]
[355438693,1741156250190,-500.0,0.00011924,2]
[355438694,1741156250199,-500.0,0.00011924,2]
[355438695,1741156250208,-500.0,0.00011924,2]
[355438696,1741156250217,-843.67,0.00011924,2]
[355438697,1741156250227,-500.0,0.00011924,2]
[355438698,1741156250236,-500.0,0.00011924,2]
[355438699,1741156250245,-962.09,0.00011924,2]
[355438700,1741156250255,-500.0,0.00011924,2]
[355438701,1741156250264,-500.0,0.00011924,2]
[355438702,1741156250273,-503.212634,0.00011924,2]
[355438703,1741156250282,-500.0,0.00011924,2]
[355438704,1741156250292,-500.0,0.00011924,2]
[355438705,1741156250301,-500.0,0.00011924,2]
[355438706,1741156250311,-1358.06,0.00011924,2]
[355438707,1741156250320,-511.39293056,0.00011924,2]
[355438708,1741156250330,-500.0,0.00011924,2]
[355438709,1741156250341,-568.86692483,0.00011924,2]
[355438710,1741156250351,-500.0,0.00011924,2]
[355438711,1741156250360,-1777.88,0.00011924,2]
[355438712,1741156250369,-528.37,0.00011924,2]
[355438713,1741156250379,-500.0,0.00011924,2]
[355438714,1741156250388,-500.0,0.00011924,2]
[355438715,1741156250398,-500.0,0.00011924,2]
[355438716,1741156250408,-1272.73,0.00011924,2]
[355438717,1741156250418,-500.0,0.00011924,2]
[355438718,1741156250428,-623.2,0.00011924,2]
[355438719,1741156250437,-1300.97,0.00011924,2]
[355438720,1741156250447,-500.0,0.00011924,2]
[355438721,1741156250456,-500.0,0.00011924,2]
[355438722,1741156250465,-3409.88,0.00011924,2]
[355438723,1741156250474,-1738.6,0.00011924,2]
[355438724,1741156250483,-1281.45,0.00011924,2]
[355438725,1741156250495,-1356.42,0.00011924,2]
[355438726,1741156250504,-500.0,0.00011924,2]
[355438727,1741156250514,-500.0,0.00011924,2]
[355438728,1741156250523,-500.0,0.00011924,2]
[355438729,1741156250532,-886.01,0.00011924,2]
[355438730,1741156250543,-7561.55,0.00011924,2]
[355438731,1741156250553,-500.0,0.00011924,2]
[355438732,1741156250564,-812.36,0.00011924,2]
[355438733,1741156250575,-505.8785886,0.00011924,2]
[355438734,1741156250586,-500.0,0.00011924,2]
[355438735,1741156250597,-500.0,0.00011924,2]
[355438736,1741156250608,-3000.01,0.00011924,2]
[355438737,1741156250619,-807.17,0.00011924,2]
[355438738,1741156250629,-500.0,0.00011924,2]
[355438739,1741156250640,-1895.67,0.00011924,2]
[355438740,1741156250649,-190.44573391,0.00011924,2]
[355438741,1741156250659,-500.0,0.00011924,2]
[355438742,1741156250670,-1093.14,0.00011924,2]
[355438743,1741156250681,-500.0,0.00011924,2]
[355438744,1741156250690,-500.0,0.00011924,2]
[355438745,1741156250700,-500.0,0.00011924,2]
[355438746,1741156250711,-500.0,0.00011924,2]
[355438747,1741156250720,-3425.74,0.00011924,2]
[355438748,1741156250729,-500.0,0.00011924,2]
[355438749,1741156250738,-500.0,0.00011924,2]
[355438750,1741156250750,-10632.67,0.00011924,2]
[355438751,1741156250759,-9048.86,0.00011924,2]
[355438752,1741156250769,-500.0,0.00011924,2]
[355438753,1741156250779,-850.58,0.00011924,2]
[355438754,1741156250788,-2993.62,0.00011924,2]
[355438755,1741156250798,-500.0,0.00011924,2]
[355438756,1741156250808,-500.0,0.00011924,2]
[355438757,1741156250819,-3525.24,0.00011924,2]
[355438758,1741156250828,-3750.88,0.00011924,2]
[355438759,1741156250838,-3490.56,0.00011924,2]
[355438760,1741156250848,-5821.82,0.00011924,2]
[355438761,1741156250857,-500.0,0.00011924,2]
[355438762,1741156250867,-5332.69,0.00011924,2]
[355438763,1741156250876,-776.64,0.00011924,2]
[355438764,1741156250885,-500.0,0.00011924,2]
[355438765,1741156250894,-905.54,0.00011924,2]
[355438766,1741156250903,-7598.57104175,0.00011924,2]
[355438767,1741156250930,-469.83274425,0.00011924,2]
[355438768,1741156590129,350.84,8.997e-05,2]
[355438799,1741157432424,-947.22,0.0001041,2]
[355438800,1741157432434,-264.95759608,0.00010434,2]
[355438801,1741157432489,-864.10549473,0.00010434,2]
[355438802,1741157432540,-22770.93690919,0.00010434,2]
[355438803,1741157432550,-158.6,0.00010458,2]
[355438804,1741157432560,-407.8,0.00010458,2]
[355438805,1741157432570,-700.0,0.00010465,2]
[355438806,1741157432579,-185.72,0.00010505,2]
[355438807,1741157432589,-1000.0,0.00010549,2]
[355438808,1741157432598,-258.22,0.00010666,2]
[355438809,1741157432608,-951.58,0.00010754,2]
[355438810,1741157432617,-1979.89,0.00010784,2]
[355438811,1741157432627,-1141.77,0.00010855,2]
[355438812,1741157432636,-4627.22,0.00010872,2]
[355438813,1741157432645,-1420.65,0.00010896,2]
[355438814,1741157432655,-2000.0,0.00010908,2]
[355438815,1741157432666,-170.82,0.00010945,2]
[355438816,1741157432676,-250.0,0.00010946,2]
[355438817,1741157432688,-200.0,0.00010959,2]
[355438818,1741157432699,-340.82,0.00010959,2]
[355438819,1741157432708,-316.76,0.00010959,2]
[355438820,1741157432719,-1970.4,0.00010979,2]
[355438821,1741157432728,-550.0,0.00011,2]
[355438822,1741157432738,-350.84,0.00011261,2]
[355438823,1741157432748,-2300.78103942,0.000115,2]
[355438824,1741157432758,-1200.0,0.00011561,2]
[355438825,1741157432769,-500.0,0.00011561,2]
[355438826,1741157432779,-150.0,0.00011698,2]
[355438827,1741157432789,-6668.73,0.00011699,2]
[355438828,1741157432798,-985.75758939,0.00011699,2]
[355438829,1741157432809,-1637.76633414,0.000117,2]
[355438830,1741157432818,-985.75758933,0.00011714,2]
[355438831,1741157432828,-1637.7663341,0.00011714,2]
[355438832,1741157432839,-985.75758933,0.00011728,2]
[355438833,1741157432849,-1637.7663341,0.00011729,2]
[355438835,1741157432858,-985.75758933,0.00011743,2]
[355438836,1741157432868,-1637.7663341,0.00011743,2]
[355438838,1741157432878,-985.75758933,0.00011757,2]
[355438840,1741157432888,-1637.7663341,0.00011758,2]
[355438842,1741157432897,-985.75758933,0.00011772,2]
[355438844,1741157432906,-1637.7663341,0.00011772,2]
[355438846,1741157432916,-212.96095589,0.00011773,2]
[355438848,1741157432926,-500.0,0.00011773,2]
[355438850,1741157432935,-152.9411674,0.00011773,2]
[355438852,1741157432945,-500.72962723,0.00011773,2]
[355438854,1741157432954,-985.75758933,0.00011786,2]
[355438856,1741157432964,-1637.7663341,0.00011787,2]
[355438858,1741157432974,-1112.58105163,0.0001179,2]
[355438860,1741157432983,-2076.33,0.00011798,2]
[355438862,1741157432993,-1834.43,0.00011798,2]
[355438864,1741157433002,-1482.99,0.00011798,2]
[355438866,1741157433012,-3215.98,0.00011798,2]
[355438868,1741157433021,-2526.3,0.00011798,2]
[355438870,1741157433031,-4665.28,0.00011798,2]
[355438872,1741157433040,-3202.23,0.00011798,2]
[355438874,1741157433050,-963.21,0.00011798,2]
[355438876,1741157433060,-1897.66,0.00011798,2]
[355438878,1741157433070,-500.0,0.00011798,2]
[355438880,1741157433084,-6363.73,0.00011798,2]
[355438882,1741157433093,-2399.68,0.00011798,2]
[355438884,1741157433103,-3041.27,0.00011798,2]
[355438886,1741157433112,-500.0,0.00011798,2]
[355438887,1741157433123,-982.6,0.00011798,2]
[355438888,1741157433133,-2180.75,0.00011798,2]
[355438889,1741157433143,-4025.69,0.00011798,2]
[355438890,1741157433153,-30888.02,0.00011798,2]
[355438891,1741157433163,-1747.1,0.00011798,2]
[355438892,1741157433172,-2032.32,0.00011798,2]
[355438893,1741157433182,-881.43,0.00011798,2]
[355438894,1741157433192,-4381.89,0.00011798,2]
[355438895,1741157433201,-2681.56,0.00011798,2]
[355438896,1741157433211,-1030.64,0.00011798,2]
[355438898,1741157433220,-500.0,0.00011798,2]
[355438899,1741157433229,-1264.79,0.00011798,2]
[355438900,1741157433239,-188.68130748,0.00011799,2]
[355438901,1741157433249,-500.0,0.00011799,2]
[355438902,1741157433258,-500.0,0.00011799,2]
[355438903,1741157433269,-500.0,0.00011799,2]
[355438904,1741157433279,-500.0,0.00011799,2]
[355438905,1741157433289,-488.28871853,0.00011799,2]
[355438906,1741157433299,-500.0,0.00011799,2]
[355438907,1741157433587,-689.37,0.00011799,2]
[355438908,1741157433597,-1891.82,0.00011799,2]
[355438909,1741157433607,-1456.92,0.00011799,2]
[355438910,1741157433617,-810.7,0.00011799,2]
[355438911,1741157433627,-1257.49,0.00011799,2]
[355438912,1741157433637,-1050.54,0.00011799,2]
[355438913,1741157433646,-500.0,0.00011799,2]
[355438914,1741157433657,-656.47,0.00011799,2]
[355438915,1741157433666,-1519.04,0.00011799,2]
[355438916,1741157433675,-998.77,0.00011799,2]
[355438917,1741157433685,-604.49012381,0.00011799,2]
[355438918,1741157433695,-500.0,0.00011799,2]
[355438919,1741157433705,-1546.84,0.00011799,2]
[355438920,1741157433715,-851.75,0.00011799,2]
[355438921,1741157433725,-789.33,0.00011799,2]
[355438922,1741157433735,-697.36,0.00011799,2]
[355438923,1741157433745,-878.64,0.00011799,2]
[355438924,1741157433755,-756.9,0.00011799,2]
[355438925,1741157433766,-1304.06,0.00011799,2]
[355438926,1741157433775,-500.0,0.00011799,2]
[355438927,1741157433785,-1194.52,0.00011799,2]
[355438928,1741157433795,-500.0,0.00011799,2]
[355438929,1741157433805,-500.0,0.00011799,2]
[355438930,1741157433814,-781.3,0.00011799,2]
[355438931,1741157433824,-154.789757,0.00011799,2]
[355438932,1741157433835,-500.0,0.00011799,2]
[355438933,1741157433845,-996.62,0.00011799,2]
[355438934,1741157433855,-500.0,0.00011799,2]
[355438935,1741157433866,-1618.15,0.00011799,2]
[355438936,1741157433875,-896.48,0.00011799,2]
[355438937,1741157433885,-500.0,0.00011799,2]
[355438938,1741157433894,-851.93,0.00011799,2]
[355438939,1741157433904,-154.603501,0.00011799,2]
[355438940,1741157433914,-748.57,0.00011799,2]
[355438941,1741157433924,-500.0,0.00011799,2]
[355438942,1741157433933,-1774.72,0.00011799,2]
[355438943,1741157433943,-500.0,0.00011799,2]
[355438944,1741157433953,-738.68,0.00011799,2]
[355438945,1741157433963,-500.0,0.00011799,2]
[355438946,1741157433973,-500.0,0.00011799,2]
[355438947,1741157433984,-500.0,0.00011799,2]
[355438948,1741157433993,-967.16,0.00011799,2]
[355438949,1741157434004,-1599.13,0.00011799,2]
[355438950,1741157434014,-500.0,0.00011799,2]
[355438951,1741157434024,-1195.95,0.00011799,2]
[355438952,1741157434034,-655.29,0.00011799,2]
[355438953,1741157434043,-500.0,0.00011799,2]
[355438954,1741157434054,-500.0,0.00011799,2]
[355438955,1741157434064,-2179.41,0.00011799,2]
[355438956,1741157434075,-500.0,0.00011799,2]